Cogmind - Beta 15 @@@ ROGUE MODE // 2025.09.12 @ 10:38:45 Player: Petvaria Result: Destroyed by 1W-TKR(j) with Overtuned Pulse Rifle Performance ------------- Evolutions (0) 0 Regions Visited (3) 600 Robots Destroyed (25) 125 Value Destroyed (632) 632 Prototype IDs (0) 0 Alien Tech Used (0) 0 Bonus (758) 758 TOTAL SCORE: 2115 Bonus ------- Registered with UFD 300 Met Optimus in HQ 500 Friendly Fire -42 Cogmind --------- Core Integrity 0/250 Matter 300/300 Energy 249/250 System Corruption 0% Temperature Cool (49) Movement Rolling (110) Ox2 Location -7/Scraptown Parts ------- > --- POWER (1) -------- Ion Engine > --- PROPULSION (2) --- Overtuned Treads Wheel > --- UTILITY (2) ------ Large Storage Unit Makeshift Light Armor Plating > --- WEAPON (2) ------- Light Assault Rifle > --- INVENTORY (15) --- Light Treads Light Treads Overtuned Treads Aluminum Leg Wheel Xenon Bombardment Thruster Medium Storage Unit Makeshift Terrain Scan Processor Hacking Suite Makeshift Hacking Suite Makeshift Hacking Suite Light Assault Rifle Light Assault Rifle Light Assault Rifle Makeshift Sword Peak State ------------ > --- POWER ------------ Ion Engine > --- PROPULSION ------- Light Treads Wheel > --- UTILITY ---------- Large Storage Unit ID Mask > --- WEAPON ----------- Light Assault Rifle Light Cannon > --- INVENTORY -------- Light Treads Light Treads Overtuned Treads Aluminum Leg Wheel Xenon Bombardment Thruster Medium Storage Unit Makeshift Terrain Scan Processor Hacking Suite Makeshift Hacking Suite EM Pulse Gun Light Assault Rifle Light Assault Rifle Light Assault Rifle Makeshift Sword [Rating: 17] Favorites ----------- Power Ion Engine Engine Ion Engine Propulsion Light Treads Treads Light Treads Leg Aluminum Leg Wheel Wheel Utility Large Storage Unit Device Seismic Detector Storage Large Storage Unit Processor ID Mask Protection Makeshift Light Armor Plating Weapon Light Assault Rifle Energy Gun Medium Laser Ballistic Gun Light Assault Rifle Ballistic Cannon Light Cannon Build | -11 -10 -10 -7 ------- Run | Yrd Mat Sub Scr Slots Evolved . | . . . . Power . | . . . . Propulsion . | . . . . Utility . | . . . . Weapon . | . . . . Parts Attached 24 | 6 10 4 4 Power 2 | 1 . 1 . Engine 2 | 1 . 1 . Core . | . . . . Reactor . | . . . . Propulsion 9 | 2 3 2 2 Treads 6 | 2 1 2 1 Leg 1 | . 1 . . Wheel 2 | . 1 . 1 Hover . | . . . . Flight . | . . . . Utility 6 | 1 3 . 2 Device 1 | . 1 . . Storage 3 | 1 2 . . Processor 1 | . . . 1 Hackware . | . . . . Protection 1 | . . . 1 Artifact . | . . . . Weapon 7 | 2 4 1 . Energy Gun 2 | 1 1 . . Energy Cannon . | . . . . Ballistic Gun 4 | 1 2 1 . Ballistic Cannon 1 | . 1 . . Launcher . | . . . . Special Weapon . | . . . . Impact Weapon . | . . . . Slashing Weapon . | . . . . Piercing Weapon . | . . . . Special Melee Weapon . | . . . . Unidentified Prototypes . | . . . . Parts Lost 5 | . 2 2 1 Power 1 | . . 1 . Propulsion 1 | . 1 . . Utility . | . . . . Weapon 3 | . 1 1 1 Highest Loss Streak 2 | . 2 1 1 To Critical Strikes . | . . . . Average Backups 10 | 2 8 9 13 Power . | . 1 . . Propulsion 4 | 1 2 3 5 Utility 1 | . . 1 3 Weapon 4 | . 3 4 4 Tool/Special . | . . . . Unused Backups 12 | . 2 . 10 Power . | . . . . Propulsion 2 | . . . 2 Utility 5 | . 1 . 4 Weapon 5 | . 1 . 4 Tool/Special . | . . . . Average Slot Usage (%) 95 | . 85 99 99 Engine 14 | . 14 14 14 Treads 21 | . 25 27 14 Wheel 6 | . 2 . 13 Device 9 | . . 14 12 Storage 14 | . 14 14 14 Energy Gun 2 | . 6 2 . Ballistic Gun 15 | . 20 11 14 Ballistic Cannon 10 | . 1 14 13 Peak Build Rating 17 | 6 8 8 17 Average Rating 8 | 4 6 7 9 On Entrance 5 | . 6 7 7 Naked Turns . | . . . . Heaviest Build 33 | 13 31 31 33 Greatest Support 40 | 40 40 40 40 Greatest Overweight (x) 3 | . 3 3 3 Average Overweight (x) 1 | . . . 2 Largest Inventory Capacity 15 | 8 15 15 15 Average Capacity 13 | 6 11 15 15 Most Carried 15 | 5 11 11 15 Average Carried 10 | 3 8 9 13 Final Capacity 15 | 8 15 15 15 Final Carried 15 | 4 9 9 15 Class Distribution -------------------- 100% | Mutant Dominant Class ---------------- Mutant | -10/Materials Mutant | -10/Subcaves Mutant | -7/Scraptown Resources | -11 -10 -10 -7 ----------- Run | Yrd Mat Sub Scr Matter Collected 923 | 231 372 118 202 Remotely . | . . . . Salvage Created 833 | . 686 147 . Parts 45 | . 37 8 . Haulers Intercepted 2 | . 2 . . Recyclers Shooed 2 | . 2 . . Parts Field Recycled . | . . . . Retrieved Matter . | . . . . Parts Self-Destructed 13 | . . 13 . Prevented . | . . . . Kills | -11 -10 -10 -7 ------- Run | Yrd Mat Sub Scr Combat Hostiles Destroyed 19 | . 14 5 . Guns 15 | . 14 1 . Cannons 4 | . . 4 . Classes Destroyed 8 | . 6 2 . Hauler 2 | . 2 . . Recycler 1 | . 1 . . Operator 1 | . 1 . . Watcher 2 | . 2 . . Swarmer 6 | . 6 . . Grunt 10 | . 8 2 . Sentry 1 | . . 1 . Subdweller 2 | . . 2 . Best Kill Streak 5 | . 5 2 . Combat Bots Only 3 | . 3 2 . Max Kills in Single Turn 1 | . 1 1 . Gunslinging . | . . . . Exploded . | . . . . Melee . | . . . . Uniques/NPCs Destroyed . | . . . . Combat | -11 -10 -10 -7 -------- Run | Yrd Mat Sub Scr Hostile Shots Fired 130 | . 77 38 15 Missed 39 | . 25 11 3 Hits 91 | . 52 27 12 Projectile 91 | . 52 27 12 Critical Strikes 2 | . . . 2 Damage Taken 1349 | . 627 498 224 Core 267 | . 85 128 54 Absorbed by Shields . | . . . . Core Remaining (%) 100 | 100 . . . Volleys Fired 120 | . 69 49 2 Largest 2 | . 2 2 2 Hottest 80 | . 80 80 50 Shots Fired 234 | . 135 95 4 Gun 182 | . 134 46 2 Cannon 52 | . 1 49 2 Launcher . | . . . . Special . | . . . . Kinetic 212 | . 116 92 4 Thermal 22 | . 19 3 . Explosive . | . . . . Electromagnetic . | . . . . Robot Hit Streak 21 | . 21 7 3 Robot Miss Streak 4 | . 4 3 1 Penetration Max . | . . . . Secondary Targets 4 | . 4 . . Max Gunslinging Chain 1 | . 1 . . Shots Hit Robots 129 | . 87 39 3 Core Hits 49 | . 36 12 1 Critical Kills 2 | . 2 . . Critical Parts Destroyed . | . . . . Critical Strikes 3 | . 3 . . Burn 1 | . 1 . . Destroy 2 | . 2 . . Melee Attacks . | . . . . Impact . | . . . . Slashing . | . . . . Piercing . | . . . . Sneak Attacks . | . . . . Combat Hostiles . | . . . . Follow-up Attacks . | . . . . Damage Inflicted 1467 | . 929 496 42 Guns 1062 | . 909 147 6 Cannons 405 | . 20 349 36 Explosions . | . . . . Melee . | . . . . Ramming . | . . . . Kinetic 1282 | . 756 484 42 Thermal 185 | . 173 12 . Explosive . | . . . . Electromagnetic . | . . . . Impact . | . . . . Slashing . | . . . . Piercing . | . . . . Highest Corruption . | . . . . Average Corruption . | . . . . Corruption Purged . | . . . . Corruption Blocked . | . . . . Overload Shots . | . . . . Overflow Damage . | . . . . Projectiles . | . . . . Explosions . | . . . . Melee . | . . . . Knockbacks 2 | . . 2 . Impact . | . . . . Kinetic 2 | . . 2 . Secondary . | . . . . Self-Inflicted Damage . | . . . . Shots . | . . . . Rammed . | . . . . Targets Rammed . | . . . . Kicked . | . . . . Crushed . | . . . . Highest Temperature 110 | . 110 . 10 Average Temperature 22 | . 23 . 7 Received Heat Transfer 544 | . 303 96 145 Siege Activations . | . . . . Martial Activations . | . . . . Shielding Activations . | . . . . Robots Disrupted . | . . . . Combat Hostiles . | . . . . Robots Corrupted . | . . . . Combat Hostiles . | . . . . Parts Fried . | . . . . Impact Corruptions . | . . . . Robots Melted . | . . . . Combat Hostiles . | . . . . Parts Melted 1 | . 1 . . Heat Transferred 558 | . 521 37 . Parts Sabotaged . | . . . . Parts Stolen . | . . . . Parts Stripped . | . . . . Power Chain Reactions . | . . . . Alert | -11 -10 -10 -7 ------- Run | Yrd Mat Sub Scr Maximum Alert Level . | . . . . Low Security (%) 100 | 100 100 . . Level 1 . | . . . . Level 2 . | . . . . Level 3 . | . . . . Level 4 . | . . . . Level 5 . | . . . . High Security . | . . . . Max Security . | . . . . Peak Influence 137 | . 137 . . Initial . | . . . . Average 36 | . 37 . . Influence Increases 463 | . 393 70 . Destroy 0b10 Robot/C 340 | . 280 60 . Destroy 0b10 Robot/NC 30 | . 30 . . Destroy Leader 78 | . 68 10 . Disable Machine 15 | . 15 . . Influence Decreases 463 | . 392 71 . Entered New Map 1 | . . 1 . Time Decay 448 | . 378 70 . Lost Part 14 | . 14 . . Squads Dispatched 2 | . 2 . . Investigation . | . . . . Extermination . | . . . . Reinforcement 2 | . 2 . . Assault . | . . . . Garrison . | . . . . Intercept . | . . . . Searches Triggered . | . . . . Construction Impeded . | . . . . Haulers Reinforced . | . . . . Active Scanning Responses . | . . . . Cargo Convoy Interrupts . | . . . . Stealth | -11 -10 -10 -7 --------- Run | Yrd Mat Sub Scr Distress Signals . | . . . . Communications Jammed . | . . . . Distress Signals . | . . . . Times Spotted 57 | . 21 5 31 Peak Tracking Total 9 | . 3 2 9 Tactical Retreats . | . . . . ID Masks Used 1 | . . . 1 IFF Responses 53 | . . . 53 Traps | -11 -10 -10 -7 ------- Run | Yrd Mat Sub Scr Traps Triggered . | . . . . Indirectly . | . . . . Trap Hack Attempts . | . . . . Triggered . | . . . . Disarmed . | . . . . Reprogrammed . | . . . . Reused . | . . . . Traps Extracted . | . . . . Installed . | . . . . Triggered . | . . . . Machines | -11 -10 -10 -7 ---------- Run | Yrd Mat Sub Scr Machines Disabled 1 | . 1 . . Max in Single Turn 1 | . 1 . . Machines Repaired . | . . . . Machines Dismantled . | . . . . Machines Sabotaged . | . . . . Overloaded Fab Kills . | . . . . Hacking | -11 -10 -10 -7 --------- Run | Yrd Mat Sub Scr Machines Accessed 2 | . . 1 1 Terminals . | . . . . Fabricators . | . . . . Repair Stations . | . . . . Recycling Units . | . . . . Scanalyzers . | . . . . Garrison Access . | . . . . Total Hacks 6 | . . 4 2 Successful 6 | . . 4 2 Failed . | . . . . Catastrophic . | . . . . Database Lockouts . | . . . . Manual . | . . . . Terminals . | . . . . Fabricators . | . . . . Repair Stations . | . . . . Recycling Units . | . . . . Scanalyzers . | . . . . Garrison Access . | . . . . Terminal Hacks 6 | . . 4 2 Record 6 | . . 4 2 Fabricator Hacks . | . . . . Repair Station Hacks . | . . . . Recycling Unit Hacks . | . . . . Scanalyzer . | . . . . Garrison Access Hacks . | . . . . Unauthorized Hacks . | . . . . Terminals . | . . . . Fabricators . | . . . . Repair Stations . | . . . . Recycling Units . | . . . . Scanalyzers . | . . . . Garrison Access . | . . . . Data Cores Recovered . | . . . . Used . | . . . . Hacking Detections . | . . . . Full Trace Events . | . . . . Feedback Events . | . . . . Feedback Blocked . | . . . . Robot Schematics Acquired . | . . . . Robots Built . | . . . . Authchips . | . . . . Time . | . . . . Total Robot Build Rating . | . . . . Part Schematics Acquired . | . . . . Parts Built . | . . . . Authchips . | . . . . Time . | . . . . Total Part Build Rating . | . . . . Parts Repaired . | . . . . Time . | . . . . Parts Recycled . | . . . . Recycled Matter . | . . . . Retrieved Matter . | . . . . Retrieved Components . | . . . . Parts Scanalyzed . | . . . . Part Schematics Acquired . | . . . . Parts Damaged . | . . . . Bothacking | -11 -10 -10 -7 ------------ Run | Yrd Mat Sub Scr Used RIF Installer . | . . . . Robots Hacked . | . . . . Non-combat . | . . . . Combat . | . . . . Robot Hacks Applied . | . . . . Relay Couplers Released . | . . . . Fabnet Peak Effective % . | . . . . Robots Rewired . | . . . . Allies Hacked . | . . . . Hacks Repelled . | . . . . Allies | -11 -10 -10 -7 -------- Run | Yrd Mat Sub Scr Total Allies . | . . . . Largest Group . | . . . . Highest-Rated Group . | . . . . Highest-Rated Ally . | . . . . Total Orders . | . . . . Ally Attacks . | . . . . Total Damage . | . . . . Kills . | . . . . Allies Corrupted . | . . . . Allies Melted 1 | . . . 1 Intel | -11 -10 -10 -7 ------- Run | Yrd Mat Sub Scr Active Infowar (turns) 3885 | . 68 1524 2293 Seismic 3777 | . 68 1524 2185 ID Mask 108 | . . . 108 Robot Analysis Total . | . . . . Derelict Logs Recovered 1 | . . 1 . Drone Launches . | . . . . Drone Recoveries . | . . . . Exploration | -11 -10 -10 -7 ------------- Run | Yrd Mat Sub Scr Turns Passed 5571 | 64 1550 1524 2433 Spaces Moved 3384 | 43 743 843 1755 Core 17 | 17 . . . Treads 1481 | 26 625 824 6 Legs . | . . . . Wheels 1886 | . 118 19 1749 Hover . | . . . . Flight . | . . . . Fastest Speed 50 | 50 110 125 110 Average Speed 132 | 116 153 159 110 Slowest Speed 160 | 160 160 160 160 Overloaded Moves . | . . . . Propulsion Burnouts . | . . . . Robots Hopped . | . . . . Potential Cave-ins . | . . . . Cave-ins Triggered . | . . . . Exploration Rate (%) 57 | 4 96 37 93 Regions Visited 3 Branch Regions 2 Pre-discovered Areas 1 | . . 1 . Known Exits Taken . | . . . . Unknown Exits Taken 3 | 1 1 1 . Scrap Searched 5 | . . . 5 Spaces Dug . | . . . . Terrain Destroyed . | . . . . Melee . | . . . . Projectile . | . . . . AOE . | . . . . Terrain Rammed . | . . . . Walls Destroyed . | . . . . Machines Disabled . | . . . . Actions | -11 -10 -10 -7 --------- Run | Yrd Mat Sub Scr Total 4273 | 57 1032 938 2246 Wait 705 | . 192 41 472 Move 3381 | 42 742 842 1755 Hop . | . . . . Pick Up 31 | 9 11 2 9 Fast Attach 4 | 1 2 . 1 Attach 11 | 5 3 2 1 Detach 1 | . 1 . . Swap 10 | . 6 2 2 Drop 10 | . 6 . 4 Fire 120 | . 69 49 2 Melee . | . . . . Ram . | . . . . Kick . | . . . . Crush . | . . . . Escape Stasis . | . . . . Rewire . | . . . . Trap . | . . . . Miscellaneous . | . . . . Route ------- -11/Scrapyard -10/Materials (discovered 5 exits: [*Mat x3] / [*Min] / *Sub) -10/Subcaves (discovered 2 exits: [*Mat] / *Scr) -7/Scraptown (discovered 2 exits: *Fac x2) History --------- Turn | Location | Event 4 | -11/Scrapyard | Discovered new exit (range 15) 65 | -11/Scrapyard | Entered Materials 296 | -10/Materials | Discovered new exit (range 3) 313 | -10/Materials | Build established: Mutant 587 | -10/Materials | Discovered new exit (range 8) 679 | -10/Materials | Discovered new exit (range 5) 1046 | -10/Materials | Discovered new exit (range 10) 1488 | -10/Materials | Discovered new exit (range 9) 1615 | -10/Materials | Entered Subcaves 1616 | -10/Subcaves | Approached by a straggling Scientist 1791 | -10/Subcaves | Visited Clippyterm 1796 | -10/Subcaves | Learned 40 Factory zone layouts 1796 | -10/Subcaves | Learned Factory stockpile data 1836 | -10/Subcaves | Scientist uncovered a shortcut to Scraptown 1910 | -10/Subcaves | A swath of the cavern ceiling suddenly collapsed 2048 | -10/Subcaves | Core integrity fell below 50% 2452 | -10/Subcaves | Discovered new exit (range 12) 2635 | -10/Subcaves | Shifting Twisted Machinery released Lgt. Humpback 2635 | -10/Subcaves | Learned location of Storage (-7) 2957 | -10/Subcaves | Core integrity fell below 20% 3139 | -10/Subcaves | Entered Scraptown 3326 | -7/Scraptown | Heard Great Nut preacher, LISTEN AND RECITE! 3511 | -7/Scraptown | Visited SPCMW 3530 | -7/Scraptown | Visited Red Mages 3619 | -7/Scraptown | Visited Cyclists 3643 | -7/Scraptown | Visited Shadow of the Wyrm 3670 | -7/Scraptown | Visited Assassins FH 3915 | -7/Scraptown | Discovered new exit (range 7) 4039 | -7/Scraptown | Visited Cave Peace 4080 | -7/Scraptown | Visited UFD Registry 4080 | -7/Scraptown | Registered with UFD as "Wiretube" 4124 | -7/Scraptown | Entered Cyclist Reading Room 4190 | -7/Scraptown | Visited Research Penetration Think Tank 4214 | -7/Scraptown | Visited LU-1G1's Boring Crew 4263 | -7/Scraptown | Visited A0-MCA Data Center 4401 | -7/Scraptown | Visited Curators Association 4454 | -7/Scraptown | Visited Scrap Suit Storage 4470 | -7/Scraptown | Visited Scrapoid Research Area 4493 | -7/Scraptown | Visited Cartography Club 4591 | -7/Scraptown | Visited Chapter 10 4619 | -7/Scraptown | Visited Junk Repository 4653 | -7/Scraptown | Visited Junk Repository 4909 | -7/Scraptown | Met Optimus 4909 | -7/Scraptown | Accepted into 0bPrime 5309 | -7/Scraptown | Civil war broke out across Scraptown 5331 | -7/Scraptown | Found ID Mask 5332 | -7/Scraptown | ID Mask engaged 5383 | -7/Scraptown | Identified exit to Factory 5480 | -7/Scraptown | Optimus destroyed in the chaos of civil war 5572 | -7/Scraptown | Lost 19 allies 5572 | -7/Scraptown | Destroyed by 1W-TKR(j) with Overtuned Pulse Rifle Last Messages --------------- Optimus: "We are 0bPrime!" ANNOUNCEMENT: The traitor Optimus has been dealt with. Put down any remaining collaborators. Optimus destroyed. R9-HUZ(g) destroyed. 7G-2V2(j) destroyed. Bolt penetrates PD-JXY(j). 8E-684(h) suffers critical hit (Burn). DP-969(M) suffers critical hit (Burn). DP-969(M) destroyed. 3X-K3F(j) destroyed. 8E-684(h) destroyed. R0-7TJ(j) suffers critical hit (Burn). 6Z-FJS(E) heat short circuits Ovr. Treads. R0-7TJ(j) switches sides: "I don't know who to fight for!" SC-GAA(x) switches sides. Acquired 10 matter. Lgt. Cannon destroyed. Critical hit (Burn: +50). Map ----- +----------------------------------------------------+ | #???????#" =* =% | | #???????#" == !! = | | #?????###" ==!%[ =% | | #?????# " =&==%*! = | | ##### #????####" *!%![[%== | | ????# #????"""" """""" "" """""" """" | | ????# #???#"""" """"""""""""""" """"" | | ????# * [ #???#"""" ""###### ########### | | ????# %=[%!#???#"""" ""# ##???? | | ##??# = !%#???#"""" ""# X"#???? | | #?# !###?#"""" ""# "" "" ##???? | | " ## ""#"#"""" "# "" "" X"#???? | | "" ## """"#"""" ""# " " ###### | | ## ""####### "" "" | | " "" ###????#![ " "" | | " ## [ #########[%= "# " " ###### | | " ##=%! =j[j=!=%!%*![ ""# "" "" ""#???? | | "" =!!=!= !% = %*[!= ""# "" "" ##???? | | " "" %=%!%%!!!= %* *[=!=[ ""# X"#???? | | """ !=[=!=%= !!!%=[=%* ""# ##???? | | """" [%*==![= !%[*! ! ""###### ########### | | %=[!T=%[!* !!%%! * ! """""""""""""""""""" | | =!!%![!%=== =[!%!%="""""""" """"""""""" | | !*=!%*!%[ = !%[[!![=%=* ! | | [!= %[=[=! *! ! ![!* ! | | [ =% =!==%%![ =@! [%== | | % = !%[!#""""# [jx !%%[ % | | ! ==%%#????# j= [ = | | = %=#????# " "" %"""" """"" """"""" | | #########"=%*####????###;###*########### ######## | | """??????#" [*#????????#" [%= #???# #?#" | | ???# "=% #????????#"" *= "#???# # # #?#" | | "" ""?# " = #????????#"" #???# # # #?#" | | ?##" #????????#"" "#???# # # #?#" | | "" " """??# #????????#"" "#???# ####### #?#" | | "" " """??# #????????#""""" ""#???# #?#" | | " ???# #????????#""""""""#???# # """ # #?#" | | ??""?""???# #????????##########???# # "#" # #?#" | | ???#??##??# #?????????????????????# # """ # #?#" | | ??????????# #?????????????????????# # # #?#" | | ??????????# #?????????????????????###########??? | | ########### #??????????????????????????????????? | | """"""""""" #???????############################ | | """"" """"" #???????? ##"""##"""##"""##"""# | | """" " "" #????????""""" ## ""## ""##" "##"""# | | #???????"""""" | | "" "" "" " #??????""""""" | | """"""""""" #????? """"""" | | """"""""""" #????# """"""" ##"""##"""##""|##"|"# | | ########### #????# ##"""##"""##"""##"""# | +----------------------------------------------------+ Best States ------------- Heat Dissipation 25 Energy Generation 10 Energy Capacity 250 Matter Stores 300 Matter Capacity 300 Sight Range 16 Terrain Scan Density 10 Armor Coverage 100 Evasion (%) 50 Recoil Reduction 2 Item Schematics ----------------- None Robot Schematics ------------------ None Fabricated ------------ Nothing Repaired ---------- Nothing Alien Tech Used ----------------- None Achievements -------------- None Challenges ------------ None Game ------ Seed LightningFluxBotcube Manual? 0 Play Time 00:36:08 Cumulative 194.3 hours Start 2025.09.12 @ 10:00:08 End 2025.09.12 @ 10:38:45 Sessions 1 Manual Loads 0 Difficulty Rogue Special Mode None Game No. 161 Rogue 161 Adventurer 0 Explorer 0 Win Type - Total 10 Types 4/0/2/2/1/0/0/0/0/1 Lore% 88 Gallery% 83 Achievement% 66 Wizard Run 0 Options --------- Layout 1 ASCII 0 Keyboard 0 Movement Numpad Keybinds 0 Fullscreen 1 Font 24/Proggy Map View 50x35 Zoom Use 0% Tactical HUD 0 Map Filters NONE Filters NONE Steam 1 RUN: d9af606a-5e36-4bf5-a472-7d5bb77673b4